Cogmind - Beta 15 @@@ ROGUE MODE // 2025.06.14 @ 00:07:55 Player: Pekk-R-INE-1 Result: Destroyed self with Mini Grenade Launcher Performance ------------- Evolutions (0) 0 Regions Visited (4) 800 Robots Destroyed (30) 150 Value Destroyed (522) 522 Prototype IDs (25) 500 Alien Tech Used (0) 0 Bonus (300) 300 TOTAL SCORE: 2272 Bonus ------- Aligned with FarCom 300 Cogmind --------- Core Integrity 0/250 Matter 266/300 Energy 35/100 System Corruption 0% Temperature Cool (0) Movement Core (400) Ox7 Location -9/Mines Parts ------- > --- POWER (1) -------- (None) > --- PROPULSION (2) --- (None) > --- UTILITY (2) ------ Large Storage Unit Weapon Shielding > --- WEAPON (2) ------- Mini Grenade Launcher > --- INVENTORY (15) --- Cooled Ion Engine Cooled Ion Engine Cooled Ion Engine Large Storage Unit Sensor Array Signal Interpreter Signal Interpreter Terrain Scanner Power Shielding Hacking Suite Supersonic Drone Bay (1/1) Mini Grenade Launcher Peak State ------------ > --- POWER ------------ Cooled Ion Engine > --- PROPULSION ------- Wheel Compact Wheel > --- UTILITY ---------- Large Storage Unit Weapon Shielding > --- WEAPON ----------- Heavy EM Pulse Gun Mini Grenade Launcher > --- INVENTORY -------- Cooled Ion Engine Cooled Ion Engine Cooled Ion Engine Medium Storage Unit Sensor Array Signal Interpreter Signal Interpreter Terrain Scanner Power Shielding Weapon Shielding Hacking Suite Heavy EM Pulse Gun Light Assault Rifle Light Assault Rifle Mini Grenade Launcher [Rating: 13] Favorites ----------- Power Cooled Ion Engine Engine Cooled Ion Engine Propulsion Wheel Wheel Wheel Utility Large Storage Unit Device Tractor Beam Storage Large Storage Unit Protection Weapon Shielding Weapon Light Assault Rifle Energy Gun Heavy EM Pulse Gun Ballistic Gun Light Assault Rifle Launcher Mini Grenade Launcher Build | -11 -10 -10 -10 -9 ------- Run | Yrd Mat Min Exi Min Slots Evolved . | . . . . . Power . | . . . . . Propulsion . | . . . . . Utility . | . . . . . Weapon . | . . . . . Parts Attached 24 | 7 12 1 1 3 Power 4 | 1 3 . . . Engine 4 | 1 3 . . . Core . | . . . . . Reactor . | . . . . . Propulsion 3 | 2 1 . . . Treads . | . . . . . Leg . | . . . . . Wheel 3 | 2 1 . . . Hover . | . . . . . Flight . | . . . . . Utility 9 | 2 5 . 1 1 Device 3 | 1 2 . . . Storage 4 | 1 2 . 1 . Processor . | . . . . . Hackware . | . . . . . Protection 2 | . 1 . . 1 Artifact . | . . . . . Weapon 8 | 2 3 1 . 2 Energy Gun 2 | . 1 . . 1 Energy Cannon . | . . . . . Ballistic Gun 4 | 2 2 . . . Ballistic Cannon . | . . . . . Launcher 2 | . . 1 . 1 Special Weapon . | . . . . . Impact Weapon . | . . . . . Slashing Weapon . | . . . . . Piercing Weapon . | . . . . . Special Melee Weapon . | . . . . . Unidentified Prototypes 1 | . 1 . . . Parts Lost 8 | . 1 1 . 6 Power 1 | . . . . 1 Propulsion 2 | . . 1 . 1 Utility 2 | . 1 . . 1 Weapon 3 | . . . . 3 Highest Loss Streak 4 | . 1 1 . 4 To Critical Strikes . | . . . . . Average Backups 12 | 1 10 15 15 13 Power 2 | . 1 3 3 3 Propulsion . | . . . . . Utility 7 | . 6 8 8 8 Weapon 2 | 1 2 4 3 2 Tool/Special . | . . . . . Unused Backups 15 | . 5 . 1 9 Power 5 | . 2 . . 3 Propulsion . | . . . . . Utility 7 | . . . 1 6 Weapon 2 | . 2 . . . Tool/Special 1 | . 1 . . . Average Slot Usage (%) 89 | . 98 86 85 62 Engine 13 | . 14 14 14 12 Wheel 19 | . 28 15 14 2 Device 3 | . 9 . . . Storage 14 | . 14 14 14 14 Protection 9 | . 2 14 14 14 Energy Gun 9 | . 2 14 14 16 Ballistic Gun 18 | . 25 14 14 4 Peak Build Rating 13 | 7 12 13 12 12 Average Rating 9 | 5 8 11 11 9 On Entrance 8 | . 7 12 11 12 Naked Turns . | . . . . . Heaviest Build 33 | 11 33 33 33 33 Greatest Support 32 | 32 32 26 10 10 Greatest Overweight (x) 10 | . 1 3 3 10 Average Overweight (x) 2 | . . 2 3 8 Largest Inventory Capacity 15 | 8 15 15 15 15 Average Capacity 14 | 6 13 15 15 15 Most Carried 15 | 5 15 15 15 15 Average Carried 12 | 1 10 15 14 13 Final Capacity 15 | 8 15 15 15 15 Final Carried 15 | 2 15 15 15 12 Class Distribution -------------------- 85% | Mutant 14% | Scavenger-Mutant Dominant Class ---------------- Mutant | -10/Materials Mutant | -10/Mines Mutant | -10/Exiles Mutant | -9/Mines Resources | -11 -10 -10 -10 -9 ----------- Run | Yrd Mat Min Exi Min Matter Collected 561 | 304 196 61 . . Remotely 98 | . 98 . . . Salvage Created 953 | 124 587 86 . 156 Parts 64 | 10 43 4 . 7 Haulers Intercepted . | . . . . . Recyclers Shooed 3 | . 3 . . . Parts Field Recycled . | . . . . . Retrieved Matter . | . . . . . Parts Self-Destructed . | . . . . . Prevented . | . . . . . Kills | -11 -10 -10 -10 -9 ------- Run | Yrd Mat Min Exi Min Combat Hostiles Destroyed 19 | . 13 4 . 2 Guns 17 | . 13 2 . 2 AOE 2 | . . 2 . . Classes Destroyed 9 | 2 5 1 . 1 Worker 1 | . 1 . . . Tunneler 3 | 3 . . . . Recycler 5 | 1 2 1 . 1 Operator 2 | . 2 . . . Watcher 1 | . 1 . . . Swarmer 9 | . 6 3 . . Grunt 8 | . 7 . . 1 Duelist 1 | . . . . 1 Assembled 1 | . . 1 . . Best Kill Streak 5 | 2 5 4 . 2 Combat Bots Only 3 | . 3 3 . 2 Max Kills in Single Turn 2 | 1 2 2 . 1 Gunslinging . | . . . . . Exploded 2 | . . 2 . . Melee . | . . . . . Uniques/NPCs Destroyed . | . . . . . Combat | -11 -10 -10 -10 -9 -------- Run | Yrd Mat Min Exi Min Hostile Shots Fired 89 | . 48 13 . 28 Missed 24 | . 15 3 . 6 Hits 65 | . 33 10 . 22 Melee 9 | . . . . 9 Projectile 56 | . 33 10 . 13 Critical Strikes 1 | . . . . 1 Actively Blocked 1 | . . . . 1 Damage Taken 948 | . 351 87 . 510 Core 265 | . 107 15 . 143 Absorbed by Shields . | . . . . . Redirected to Shielding 80 | . . 4 . 76 Core Remaining (%) 100 | 100 . . . . Volleys Fired 98 | 17 56 8 . 17 Largest 2 | 2 2 2 . 2 Hottest 90 | 40 65 75 . 90 Shots Fired 184 | 34 112 16 . 22 Gun 182 | 34 112 15 . 21 Cannon . | . . . . . Launcher 2 | . . 1 . 1 Special . | . . . . . Kinetic 155 | 34 110 7 . 4 Thermal . | . . . . . Explosive 2 | . . 1 . 1 Electromagnetic 27 | . 2 8 . 17 Robot Hit Streak 12 | 5 8 2 . 12 Robot Miss Streak 5 | 4 5 3 . 3 Penetration Max . | . . . . . Secondary Targets 1 | . 1 . . . Max Gunslinging Chain 1 | . 1 . . . Shots Hit Robots 110 | 21 67 6 . 16 Core Hits 58 | 10 37 6 . 5 Critical Kills 1 | . 1 . . . Critical Parts Destroyed . | . . . . . Critical Strikes 2 | . 1 1 . . Destroy 1 | . 1 . . . Corrupt 1 | . . 1 . . Melee Attacks . | . . . . . Impact . | . . . . . Slashing . | . . . . . Piercing . | . . . . . Sneak Attacks . | . . . . . Combat Hostiles . | . . . . . Follow-up Attacks . | . . . . . Damage Inflicted 1295 | 161 586 281 . 267 Guns 1014 | 161 586 74 . 193 Cannons . | . . . . . Explosions 281 | . . 207 . 74 Melee . | . . . . . Ramming . | . . . . . Kinetic 748 | 161 537 19 . 31 Thermal 87 | . . 46 . 41 Explosive 194 | . . 161 . 33 Electromagnetic 266 | . 49 55 . 162 Impact . | . . . . . Slashing . | . . . . . Piercing . | . . . . . Highest Corruption . | . . . . . Average Corruption . | . . . . . Corruption Purged . | . . . . . Corruption Blocked . | . . . . . Overload Shots . | . . . . . Overflow Damage . | . . . . . Projectiles . | . . . . . Explosions . | . . . . . Melee . | . . . . . Knockbacks . | . . . . . Impact . | . . . . . Kinetic . | . . . . . Secondary . | . . . . . Self-Inflicted Damage 96 | . . . . 96 Shots 2 | . . . . 2 Rammed . | . . . . . Targets Rammed . | . . . . . Kicked . | . . . . . Crushed . | . . . . . Highest Temperature 78 | . 31 40 . 78 Average Temperature 24 | . 13 15 . 44 Received Heat Transfer 225 | . 147 . . 78 Siege Activations . | . . . . . Martial Activations . | . . . . . Shielding Activations . | . . . . . Robots Disrupted . | . . . . . Combat Hostiles . | . . . . . Robots Corrupted . | . . . . . Combat Hostiles . | . . . . . Parts Fried 2 | . . . . 2 Impact Corruptions . | . . . . . Robots Melted . | . . . . . Combat Hostiles . | . . . . . Parts Melted 1 | . . 1 . . Heat Transferred 100 | . . 50 . 50 Parts Sabotaged . | . . . . . Parts Stolen . | . . . . . Parts Stripped . | . . . . . Power Chain Reactions 2 | . . 1 . 1 Alert | -11 -10 -10 -10 -9 ------- Run | Yrd Mat Min Exi Min Maximum Alert Level . | . . . . . Low Security (%) 100 | 100 100 100 . 100 Level 1 . | . . . . . Level 2 . | . . . . . Level 3 . | . . . . . Level 4 . | . . . . . Level 5 . | . . . . . High Security . | . . . . . Max Security . | . . . . . Peak Influence 171 | 10 171 103 . 50 Initial 44 | . 3 44 . . Average 83 | 2 111 55 . 26 Influence Increases 593 | 20 424 88 . 61 Destroy 0b10 Robot/C 360 | . 260 60 . 40 Destroy 0b10 Robot/NC 60 | 20 30 5 . 5 Destroy Leader 72 | . 52 10 . 10 Successful Hack 22 | . 22 . . . Destroy Structure 19 | . . 13 . 6 Lose Combat Pursuer 60 | . 60 . . . Influence Decreases 567 | 15 314 201 2 35 Entered New Map 75 | . 2 71 2 . Time Decay 447 | 15 302 120 . 10 Lost Part 45 | . 10 10 . 25 Squads Dispatched 3 | . 3 . . . Investigation 2 | . 2 . . . Extermination . | . . . . . Reinforcement 1 | . 1 . . . Assault . | . . . . . Garrison . | . . . . . Intercept . | . . . . . Searches Triggered . | . . . . . Construction Impeded . | . . . . . Haulers Reinforced . | . . . . . Active Scanning Responses . | . . . . . Cargo Convoy Interrupts . | . . . . . Stealth | -11 -10 -10 -10 -9 --------- Run | Yrd Mat Min Exi Min Distress Signals 2 | . 2 . . . Communications Jammed . | . . . . . Distress Signals . | . . . . . Times Spotted 39 | . 26 9 . 4 Peak Tracking Total 12 | . 6 12 . 2 Tactical Retreats 4 | . 3 1 . . Traps | -11 -10 -10 -10 -9 ------- Run | Yrd Mat Min Exi Min Traps Triggered 2 | . 2 . . . Indirectly . | . . . . . Trap Hack Attempts . | . . . . . Triggered . | . . . . . Disarmed . | . . . . . Reprogrammed . | . . . . . Reused . | . . . . . Traps Extracted . | . . . . . Installed . | . . . . . Triggered . | . . . . . Machines | -11 -10 -10 -10 -9 ---------- Run | Yrd Mat Min Exi Min Machines Disabled . | . . . . . Max in Single Turn . | . . . . . Machines Repaired . | . . . . . Machines Dismantled . | . . . . . Machines Sabotaged . | . . . . . Overloaded Fab Kills . | . . . . . Hacking | -11 -10 -10 -10 -9 --------- Run | Yrd Mat Min Exi Min Machines Accessed 8 | . 5 . 3 . Terminals 5 | . 5 . . . Fabricators . | . . . . . Repair Stations . | . . . . . Recycling Units . | . . . . . Scanalyzers . | . . . . . Garrison Access . | . . . . . Total Hacks 20 | . 11 . 9 . Successful 12 | . 3 . 9 . Failed 8 | . 8 . . . Catastrophic . | . . . . . Database Lockouts . | . . . . . Manual 6 | . 5 . 1 . Terminals 11 | . 11 . . . Fabricators . | . . . . . Repair Stations . | . . . . . Recycling Units . | . . . . . Scanalyzers . | . . . . . Garrison Access . | . . . . . Terminal Hacks 12 | . 3 . 9 . Record 8 | . . . 8 . Robot Analysis 1 | . 1 . . . Prototype ID Bank 1 | . 1 . . . Branch Access Points 1 | . 1 . . . Proto ID Catalog 1 | . . . 1 . Fabricator Hacks . | . . . . . Repair Station Hacks . | . . . . . Recycling Unit Hacks . | . . . . . Scanalyzer . | . . . . . Garrison Access Hacks . | . . . . . Unauthorized Hacks . | . . . . . Terminals . | . . . . . Fabricators . | . . . . . Repair Stations . | . . . . . Recycling Units . | . . . . . Scanalyzers . | . . . . . Garrison Access . | . . . . . Data Cores Recovered 1 | . 1 . . . Used 1 | . 1 . . . Hacking Detections 4 | . 4 . . . Full Trace Events . | . . . . . Feedback Events . | . . . . . Feedback Blocked . | . . . . . Robot Schematics Acquired . | . . . . . Robots Built . | . . . . . Authchips . | . . . . . Time . | . . . . . Total Robot Build Rating . | . . . . . Part Schematics Acquired . | . . . . . Parts Built . | . . . . . Authchips . | . . . . . Time . | . . . . . Total Part Build Rating . | . . . . . Parts Repaired . | . . . . . Time . | . . . . . Parts Recycled . | . . . . . Recycled Matter . | . . . . . Retrieved Matter . | . . . . . Retrieved Components . | . . . . . Parts Scanalyzed . | . . . . . Part Schematics Acquired . | . . . . . Parts Damaged . | . . . . . Bothacking | -11 -10 -10 -10 -9 ------------ Run | Yrd Mat Min Exi Min Used RIF Installer . | . . . . . Robots Hacked . | . . . . . Non-combat . | . . . . . Combat . | . . . . . Robot Hacks Applied . | . . . . . Relay Couplers Released . | . . . . . Fabnet Peak Effective % . | . . . . . Robots Rewired . | . . . . . Allies Hacked . | . . . . . Hacks Repelled . | . . . . . Allies | -11 -10 -10 -10 -9 -------- Run | Yrd Mat Min Exi Min Total Allies . | . . . . . Largest Group . | . . . . . Highest-Rated Group . | . . . . . Highest-Rated Ally . | . . . . . Total Orders . | . . . . . Ally Attacks . | . . . . . Total Damage . | . . . . . Kills . | . . . . . Allies Corrupted . | . . . . . Allies Melted . | . . . . . Intel | -11 -10 -10 -10 -9 ------- Run | Yrd Mat Min Exi Min Active Infowar (turns) 320 | 63 257 . . . Terrain 131 | . 131 . . . Seismic 189 | 63 126 . . . Robot Analysis Total 1 | . 1 . . . Derelict Logs Recovered . | . . . . . Drone Launches . | . . . . . Drone Recoveries . | . . . . . Exploration | -11 -10 -10 -10 -9 ------------- Run | Yrd Mat Min Exi Min Turns Passed 1732 | 99 665 247 664 57 Spaces Moved 1196 | 47 442 174 529 4 Core 16 | 13 . . . 3 Treads . | . . . . . Legs . | . . . . . Wheels 1180 | 34 442 174 529 1 Hover . | . . . . . Flight . | . . . . . Fastest Speed 50 | 50 100 105 125 125 Average Speed 116 | 86 103 123 125 443 Slowest Speed 550 | 100 105 125 125 550 Overloaded Moves . | . . . . . Propulsion Burnouts . | . . . . . Robots Hopped . | . . . . . Potential Cave-ins . | . . . . . Cave-ins Triggered . | . . . . . Exploration Rate (%) 38 | 3 73 31 81 5 Regions Visited 4 Branch Regions 3 Pre-discovered Areas 1 | . . . 1 . Known Exits Taken 1 | . 1 . . . Unknown Exits Taken 3 | 1 . 1 1 . Scrap Searched . | . . . . . Spaces Dug . | . . . . . Terrain Destroyed 20 | . . 14 . 6 Melee . | . . . . . Projectile . | . . . . . AOE 20 | . . 14 . 6 Terrain Rammed . | . . . . . Walls Destroyed . | . . . . . Machines Disabled . | . . . . . Actions | -11 -10 -10 -10 -9 --------- Run | Yrd Mat Min Exi Min Total 1384 | 76 562 189 533 24 Wait 24 | . 18 6 . . Move 1192 | 46 441 173 528 4 Hop . | . . . . . Pick Up 28 | 6 21 . 1 . Fast Attach 4 | 3 1 . . . Attach 8 | 4 . . 1 3 Detach . | . . . . . Swap 14 | . 11 2 1 . Drop 16 | . 14 . 2 . Fire 98 | 17 56 8 . 17 Melee . | . . . . . Ram . | . . . . . Kick . | . . . . . Crush . | . . . . . Escape Stasis . | . . . . . Rewire . | . . . . . Trap . | . . . . . Miscellaneous . | . . . . . Route ------- -11/Scrapyard -10/Materials (discovered 2 exits: [*Mat] / *Min) -10/Mines -10/Exiles (discovered 2 exits: [*Min x2]) -9/Mines History --------- Turn | Location | Event 15 | -11/Scrapyard | Discovered new exit (range 16) 100 | -11/Scrapyard | Entered Materials 201 | -10/Materials | Identified exit to Mines 305 | -10/Materials | Build established: Mutant 648 | -10/Materials | Discovered new exit (range 4) 765 | -10/Materials | Entered Mines 790 | -10/Mines | Met a Derelict bent on vengeance 883 | -10/Mines | Assembled infested the area 888 | -10/Mines | Assisted by a Guerilla fighting off Assembled 1007 | -10/Mines | Deemed a non-threat by the Exiles lab entrance 1007 | -10/Mines | Discovered new exit (range 5) 1012 | -10/Mines | Entered Exiles 1031 | -10/Exiles | Discovered new exit (range 15) 1045 | -10/Exiles | Met 8R-AWN 1067 | -10/Exiles | Met EX-HEX 1112 | -10/Exiles | Met EX-BIN 1157 | -10/Exiles | Aligned with FarCom system 1159 | -10/Exiles | Given EX-Vault access code 1189 | -10/Exiles | Opened EX-Vault 1256 | -10/Exiles | Warned to stay clear of 0b10 Research branches 1355 | -10/Exiles | Found Supersonic Drone Bay 1464 | -10/Exiles | Met EX-DEC 1494 | -10/Exiles | Learned location of Zion (-7) 1544 | -10/Exiles | Visited The Gauntlet 1659 | -10/Exiles | Discovered new exit (range 14) 1676 | -10/Exiles | Left Exiles lab with Supersonic Drone Bay 1676 | -10/Exiles | Entered Mines 1681 | -9/Mines | Core integrity fell below 50% 1721 | -9/Mines | Lost 4 parts (1n1u2w) 1722 | -9/Mines | Core integrity fell below 20% 1733 | -9/Mines | Destroyed self with Mini Grenade Launcher Last Messages --------------- 01676_ Receiving FarCom transmissions... 01677_ C-30 ARC bursts open, deploying its payload. 01677_ L-31 Rogue unfolds itself. 01677_ G-34 Mercenary unfolds itself. 01678_ Wheel destroyed. 01681_ Chain reaction triggered in Imp. Ion Engine. 01688_ Lgt. Assault Rifle destroyed. 01690_ Weapon Shielding destroyed. 01690_ Hvy. EM Pulse Gun destroyed. 01696_ G-34 Mercenary destroyed. 01698_ Melee Analysis Suite fried. 01698_ Katana fried. 01698_ L-31 Rogue destroyed. 01721_ Cld. Ion Engine destroyed. 01727_ R-06 Scavenger collects Corrupted Imp. Aluminum Leg. 01729_ U-05 Engineer builds a Wall. 01731_ R-06 Scavenger collects Corrupted Imp. Aluminum Leg. 01731_ Hvy. EM Pulse Gun destroyed. 01733_ R-06 Scavenger collects Aluminum Leg. 01733_ R-06 Scavenger destroyed. Map ----- +----------------------------------------------------+ | ?????????????????????????????????????????????????? | | ?????????????????????????????????????????????????? | | ?????????????????????????????????????????????????? | | ?????????????????????????????????????????????????? | | ?????????????????????????????????????????????????? | | ?????????????????????????????????????????????????? | | ?????????????????????????????????????????????????? | | ?????????????????????????????????????????????????? | | ?????????????????????????????????????????????????? | | ?????????????????????????????????????????????????? | | ?????????????????????????????????????????????????? | | ?????????????????????????????????????????????????? | | ?????????????????????????????????????????????????? | | ?????????????????????????????????????????????????? | | ????????????????????????????#????????????????????? | | ??????????????????????????? #????????????????????? | | ???????????????????????#??? #????????????????????? | | ???????????????????????# ?? #?????#??????????????? | | ???????????????????????# ?? #???? ???????????????? | | ???????????????????????# ?? #??? ????????????????? | | ???????????????????????# ?? #?? ?????????????????? | | ???????????????????????# ?? ## ??????????????????? | | ??????????????????###### ##g ???????????????????? | | ??????????????????# %%!!#????????????????????? | | ??????????????????# """ l%=#????????????????????? | | ??????????????????# """ @ #### #??????????????? | | ??????????????????# """ # #??????????????? | | ??????????????????# # #??????????????? | | ??????????????????# #% #####??????????????? | | ??????????????????########## #??????????????????? | | ????????????????????????????? #??????????????????? | | ??????????????????????????????#??????????????????? | | ?????????????????????????????????????????????????? | | ?????????????????????????????????????????????????? | | ?????????????????????????????????????????????????? | | ?????????????????????????????????????????????????? | | ?????????????????????????????????????????????????? | | ?????????????????????????????????????????????????? | | ?????????????????????????????????????????????????? | | ?????????????????????????????????????????????????? | | ?????????????????????????????????????????????????? | | ?????????????????????????????????????????????????? | | ?????????????????????????????????????????????????? | | ?????????????????????????????????????????????????? | | ?????????????????????????????????????????????????? | | ?????????????????????????????????????????????????? | | ?????????????????????????????????????????????????? | | ?????????????????????????????????????????????????? | | ?????????????????????????????????????????????????? | | ?????????????????????????????????????????????????? | +----------------------------------------------------+ Best States ------------- Heat Dissipation 25 Energy Generation 14 Energy Capacity 280 Matter Stores 300 Matter Capacity 300 Sight Range 16 Terrain Scan Range 14 Terrain Scan Density 10 Weapon Shielding 33 Evasion (%) 50 Item Schematics ----------------- None Robot Schematics ------------------ None Fabricated ------------ Nothing Repaired ---------- Nothing Alien Tech Used ----------------- None Achievements -------------- None Challenges ------------ None Game ------ Seed NetworkedJammingChip Manual? 0 Play Time 00:33:17 Cumulative 44.5 hours Start 2025.06.13 @ 23:10:52 End 2025.06.14 @ 00:07:55 Sessions 1 Manual Loads 0 Difficulty Rogue Special Mode None Game No. 32 Rogue 32 Adventurer 0 Explorer 0 Win Type - Total 0 Types 0/0/0/0/0/0/0/0/0/0 Lore% 23 Gallery% 31 Achievement% 30 Wizard Run 0 Options --------- Layout 1 ASCII 0 Keyboard 0 Movement Mouse Keybinds 0 Fullscreen 2 Font 32/SmallcapsGlow Map View 77x35 Zoom Use 0% Tactical HUD 1 Map Filters NONE Filters NONE Steam 1 RUN: dee82aee-0ebf-4857-9883-4d3de0412838